fUST/lending_fUST_20250318
["ID","MTS","AMOUNT","RATE_DAILY","PERIOD"]
[356340008,1742297445575,-500.0,9.589e-05,2]
[356340009,1742297445584,-1022.31,9.589e-05,2]
[356340010,1742297445594,-500.0,9.589e-05,2]
[356340011,1742297445605,-500.0,9.589e-05,2]
[356340012,1742297445615,-766.56,9.589e-05,2]
[356340013,1742297445624,-1000.0,9.589e-05,3]
[356340014,1742297445634,-1000.0,9.589e-05,3]
[356340015,1742297445644,-500.0,9.863e-05,2]
[356340016,1742297445654,-500.0,9.863e-05,2]
[356340017,1742297445664,-1041.49,9.863e-05,2]
[356340018,1742297445675,-500.0,9.863e-05,2]
[356340019,1742297445684,-2390.58,9.863e-05,2]
[356340020,1742297445694,-500.0,9.863e-05,2]
[356340021,1742297445705,-544.09593587,9.863e-05,2]
[356340023,1742297445715,-500.0,9.863e-05,2]
[356340026,1742297445726,-500.0,9.863e-05,2]
[356340029,1742297445736,-500.0,9.863e-05,2]
[356340030,1742297445745,-500.0,9.863e-05,2]
[356340032,1742297445755,-500.0,9.863e-05,2]
[356340034,1742297445765,-909.15,9.863e-05,2]
[356340036,1742297445775,-4526.97,9.863e-05,2]
[356340038,1742297445785,-500.0,9.863e-05,2]
[356340039,1742297445795,-500.0,9.863e-05,2]
[356340040,1742297445804,-1601.72,9.863e-05,2]
[356340041,1742297445814,-500.0,9.863e-05,2]
[356340042,1742297445824,-525.48,9.863e-05,2]
[356340043,1742297445834,-500.0,9.863e-05,2]
[356340044,1742297445844,-500.0,9.863e-05,2]
[356340045,1742297445854,-500.0,9.863e-05,2]
[356340046,1742297445864,-500.0,9.863e-05,2]
[356340047,1742297445874,-500.0,9.863e-05,2]
[356340048,1742297445884,-500.0,9.863e-05,2]
[356340049,1742297445895,-500.0,9.863e-05,2]
[356340050,1742297445904,-500.0,9.863e-05,2]
[356340051,1742297445914,-6515.99,9.863e-05,2]
[356340052,1742297445924,-21813.45,9.863e-05,2]
[356340053,1742297445934,-1136.45,9.863e-05,2]
[356340054,1742297445943,-500.0,9.863e-05,2]
[356340055,1742297445953,-958.57,9.863e-05,2]
[356340056,1742297445963,-633.44,9.863e-05,2]
[356340057,1742297445973,-4665.97,9.863e-05,2]
[356340058,1742297445983,-500.0,9.863e-05,2]
[356340059,1742297445993,-1022.31,9.863e-05,2]
[356340060,1742297446002,-500.0,9.863e-05,2]
[356340061,1742297446012,-500.0,9.863e-05,2]
[356340062,1742297446022,-766.56,9.863e-05,2]
[356340063,1742297446032,-20776.87511583,9.9e-05,2]
[356340064,1742297446042,-587.0,9.944e-05,2]
[356340065,1742297446052,-500.0,0.0001,2]
[356340066,1742297446062,-2000.0,0.0001,2]
[356340067,1742297446072,-2200.0,0.0001,2]
[356340068,1742297446082,-3000.0,0.00010036,2]
[356340069,1742297446091,-500.0,0.00010051,2]
[356340070,1742297446101,-500.0,0.0001009,2]
[356340071,1742297446110,-500.11433246,0.0001009,2]
[356340072,1742297446120,-500.0,0.0001009,2]
[356340073,1742297446130,-500.0,0.0001009,2]
[356340074,1742297446139,-500.0,0.0001009,2]
[356340075,1742297446149,-500.0,0.0001009,2]
[356340076,1742297446159,-500.0,0.0001009,2]
[356340077,1742297446168,-501.2529861,0.0001009,2]
[356340078,1742297446178,-267.77162778,0.0001009,2]
[356340079,1742297446188,-477.86072213,0.0001009,2]
[356340080,1742297446198,-500.0,0.0001009,2]
[356340081,1742297446207,-500.0,0.0001009,2]
[356340082,1742297446217,-364.29204742,0.0001009,2]
[356340083,1742297446391,-500.0,0.0001009,2]
[356340084,1742297446403,-500.0,0.0001009,2]
[356340085,1742297446413,-500.0,0.0001009,2]
[356340086,1742297446423,-500.0,0.0001009,2]
[356340087,1742297446433,-501.18566781,0.0001009,2]
[356340088,1742297446444,-500.4378866,0.0001009,2]
[356340089,1742297446454,-500.21280514,0.0001009,2]
[356340090,1742297446464,-500.0,0.0001009,2]
[356340091,1742297446474,-589.84,0.000101,2]
[356340092,1742297446484,-500.0,0.00010136,2]
[356340093,1742297446495,-500.0,0.00010136,2]
[356340094,1742297446505,-1041.49,0.00010136,2]
[356340096,1742297446515,-500.0,0.00010136,2]
[356340098,1742297446525,-2390.58,0.00010136,2]
[356340099,1742297446539,-500.0,0.00010136,2]
[356340100,1742297446549,-500.0,0.00010136,2]
[356340101,1742297446559,-500.0,0.00010136,2]
[356340102,1742297446570,-364.80613218,0.00010136,2]
[356340103,1742297446580,-500.0,0.00010136,2]
[356340104,1742297446590,-500.0,0.00010136,2]
[356340105,1742297446601,-500.0,0.00010136,2]
[356340106,1742297446613,-909.15,0.00010136,2]
[356340107,1742297446622,-4526.97,0.00010136,2]
[356340108,1742297446632,-500.0,0.00010136,2]
[356340109,1742297446642,-500.0,0.00010136,2]
[356340110,1742297446652,-1601.72,0.00010136,2]
[356340111,1742297446662,-150.32,0.00010136,2]
[356340112,1742297446672,-350.13580156,0.00010136,2]
[356340113,1742297446682,-525.48,0.00010136,2]
[356340114,1742297446693,-500.0,0.00010136,2]
[356340115,1742297446703,-500.0,0.00010136,2]
[356340116,1742297446713,-500.0,0.00010136,2]
[356340117,1742297446723,-500.0,0.00010136,2]
[356340118,1742297446734,-500.0,0.00010136,2]
[356340119,1742297446744,-500.0,0.00010136,2]
[356340120,1742297446754,-500.0,0.00010136,2]
[356340121,1742297446763,-405.18385487,0.00010136,2]
[356340122,1742297446773,-6515.99,0.00010136,2]
[356340123,1742297446783,-394.80137051,0.00010136,2]
[356340124,1742297446899,-833.8,0.00010136,2]
[356340125,1742297446911,-8897.65,0.00010136,2]
[356340126,1742298427117,-500.0,8.218e-05,2]
[356340127,1742298427140,-202.91682628,8.218e-05,2]
[356340128,1742298427162,-500.0,8.219e-05,2]
[356340129,1742298427184,-512.51651068,8.219e-05,2]
[356340130,1742298427205,-500.0,8.219e-05,2]
[356340131,1742298427226,-535.45394335,8.219e-05,2]
[356340132,1742298427247,-504.15283736,8.219e-05,2]
[356340133,1742298427267,-512.88407046,8.219e-05,2]
[356340134,1742298427288,-500.0,8.219e-05,2]
[356340135,1742298427309,-517.7794114,8.219e-05,2]
[356340136,1742298427330,-500.0,8.219e-05,2]
[356340137,1742298427350,-380.19,8.219e-05,2]
[356340138,1742298427371,-500.5416002,8.219e-05,2]
[356340139,1742298427391,-416.71717734,8.219e-05,2]
[356340140,1742298427412,-514.77979068,8.219e-05,2]
[356340141,1742298427433,-514.52716076,8.219e-05,2]
[356340142,1742298427455,-500.0,8.219e-05,2]
[356340143,1742298427475,-500.0,8.219e-05,2]
[356340144,1742298427497,-515.6536583,8.219e-05,2]
[356340145,1742298427518,-500.0,8.219e-05,2]
[356340146,1742298427539,-514.37066392,8.219e-05,2]
[356340147,1742298427560,-500.0,8.219e-05,2]
[356340148,1742298427580,-500.0,8.219e-05,2]
[356340149,1742298427600,-510.776666,8.219e-05,2]
[356340150,1742298427622,-500.0,8.219e-05,2]
[356340151,1742298427642,-500.0,8.219e-05,2]
[356340152,1742298427661,-500.0,8.219e-05,2]
[356340153,1742298427681,-500.0,8.219e-05,2]
[356340154,1742298427702,-634.28,8.219e-05,2]
[356340155,1742298427722,-500.0,8.219e-05,2]
[356340156,1742298427744,-500.0,8.219e-05,2]
[356340157,1742298427764,-505.8831044,8.219e-05,2]
[356340158,1742298427785,-500.0,8.219e-05,2]
[356340159,1742298427806,-460.75985241,8.219e-05,2]
[356340160,1742298427831,-500.0,8.219e-05,2]
[356340161,1742298427852,-500.0,8.219e-05,2]
[356340162,1742298427875,-500.0,8.219e-05,2]
[356340163,1742298427896,-500.0,8.219e-05,2]
[356340164,1742298427921,-516.89899135,8.219e-05,2]
[356340165,1742298427959,-500.0,8.219e-05,2]
[356340166,1742298427982,-504.70775042,8.219e-05,2]
[356340167,1742298428005,-500.0,8.219e-05,2]
[356340168,1742298428028,-510.81188937,8.219e-05,2]
[356340169,1742298428052,-500.0,8.219e-05,2]
[356340170,1742298428074,-500.0,8.219e-05,2]
[356340171,1742298428097,-500.0,8.219e-05,2]
[356340172,1742298428119,-500.0,8.219e-05,2]
[356340173,1742298428140,-501.38390531,8.219e-05,2]
[356340174,1742298428161,-500.0,8.219e-05,2]
[356340175,1742298428184,-500.0,8.219e-05,2]
[356340176,1742298428206,-502.81913337,8.219e-05,2]
[356340177,1742298428230,-500.0,8.219e-05,2]
[356340178,1742298428254,-500.0,8.219e-05,2]
[356340179,1742298428277,-500.0,8.219e-05,2]
[356340180,1742298428299,-500.0,8.219e-05,2]
[356340181,1742298428321,-500.0,8.219e-05,2]
[356340182,1742298428343,-500.0,8.219e-05,2]
[356340183,1742298428364,-500.0,8.219e-05,2]
[356340184,1742298428386,-506.76159909,8.219e-05,2]
[356340185,1742298428407,-500.0,8.219e-05,2]
[356340186,1742298428428,-505.87109784,8.219e-05,2]
[356340187,1742298428450,-1040.02,8.219e-05,2]
[356340188,1742298428471,-500.0,8.219e-05,2]
[356340189,1742298428492,-500.0,8.219e-05,2]
[356340190,1742298428513,-565.02753554,8.219e-05,2]
[356340191,1742298428534,-500.0,8.219e-05,2]
[356340192,1742298428555,-606.85,8.219e-05,2]
[356340193,1742298428581,-506.44574319,8.219e-05,2]
[356340194,1742298428603,-500.0,8.219e-05,2]
[356340195,1742298428624,-511.86678883,8.219e-05,2]
[356340196,1742298428646,-510.6916629,8.219e-05,2]
[356340197,1742298428667,-507.78251868,8.219e-05,2]
[356340198,1742298428687,-504.50481345,8.219e-05,2]
[356340199,1742298428707,-506.65118979,8.219e-05,2]
[356340200,1742298428729,-505.78277339,8.219e-05,2]
[356340201,1742298428750,-500.0,8.219e-05,2]
[356340202,1742298428771,-500.0,8.219e-05,2]
[356340203,1742298428793,-501.10369876,8.219e-05,2]
[356340204,1742298428814,-500.0,8.219e-05,2]
[356340205,1742298428839,-500.0,8.219e-05,2]
[356340206,1742298428861,-500.0,8.219e-05,2]
[356340207,1742298428886,-500.0,8.219e-05,2]
[356340208,1742298428908,-500.0,8.219e-05,2]
[356340209,1742298428934,-511.06655289,8.219e-05,2]
[356340210,1742298428956,-500.0,8.219e-05,2]
[356340211,1742298428979,-841.39,8.219e-05,2]
[356340212,1742298429002,-500.0,8.219e-05,2]
[356340213,1742298429026,-1000.0,8.219e-05,2]
[356340214,1742298429050,-500.0,8.219e-05,2]
[356340215,1742298429072,-4354.52,8.219e-05,2]
[356340216,1742298429090,-500.0,8.219e-05,2]
[356340217,1742298429110,-514.38968975,8.219e-05,2]
[356340218,1742298429129,-500.0,8.219e-05,2]
[356340219,1742298429157,-511.6568457,8.219e-05,2]
[356340220,1742298429178,-523.20218331,8.219e-05,2]
[356340221,1742298429200,-495.68553316,8.219e-05,2]
[356340222,1742298429222,-500.0,8.219e-05,2]
[356340223,1742298429246,-500.0,8.219e-05,2]
[356340224,1742298429268,-500.0,8.219e-05,2]
[356340225,1742298429290,-500.0,8.219e-05,2]
[356340226,1742298429312,-501.18187563,8.219e-05,2]
[356340227,1742298429335,-500.0,8.219e-05,2]
[356340228,1742298429356,-500.0,8.219e-05,2]
[356340229,1742298429376,-500.0,8.219e-05,2]
[356340230,1742298429399,-500.0,8.219e-05,2]
[356340231,1742298429421,-500.0,8.219e-05,2]
[356340232,1742298429724,-500.0,8.219e-05,2]
[356340233,1742298429747,-517.87416041,8.219e-05,2]
[356340234,1742298429770,-500.0,8.219e-05,2]
[356340235,1742298429792,-500.0,8.219e-05,2]
[356340236,1742298429815,-523.22,8.219e-05,2]
[356340237,1742298429841,-500.0,8.219e-05,2]
[356340238,1742298429863,-526.55,8.219e-05,2]
[356340239,1742298429885,-500.0,8.219e-05,2]
[356340240,1742298429908,-500.0,8.219e-05,2]
[356340241,1742298429930,-500.0,8.219e-05,2]
[356340242,1742298429951,-500.0,8.219e-05,2]
[356340243,1742298429973,-508.69654683,8.219e-05,2]
[356340244,1742298429996,-500.0,8.219e-05,2]
[356340245,1742298430019,-511.94052116,8.219e-05,2]
[356340246,1742298430040,-500.0,8.219e-05,2]
[356340247,1742298430062,-503.38749938,8.219e-05,2]
[356340248,1742298430084,-500.0,8.219e-05,2]
[356340249,1742298430106,-500.0,8.219e-05,2]
[356340250,1742298430128,-500.0,8.219e-05,2]
[356340251,1742298430149,-500.0,8.219e-05,2]
[356340252,1742298430172,-500.0,8.219e-05,2]
[356340253,1742298430194,-500.0,8.219e-05,2]
[356340254,1742298430216,-500.0,8.219e-05,2]
[356340255,1742298430239,-500.0,8.219e-05,2]
[356340256,1742298430260,-240.93201089,8.219e-05,2]
[356340257,1742298430281,-500.0,8.219e-05,2]
[356340258,1742298430303,-500.0,8.219e-05,2]
[356340259,1742298430324,-500.0,8.219e-05,2]
[356340260,1742298430345,-500.0,8.219e-05,2]
[356340261,1742298430368,-500.0,8.219e-05,2]
[356340262,1742298430388,-500.0,8.219e-05,2]
[356340263,1742298430409,-500.0,8.219e-05,2]
[356340264,1742298430430,-500.0,8.219e-05,2]
[356340265,1742298430450,-500.0,8.219e-05,2]
[356340266,1742298430471,-500.0,8.219e-05,2]
[356340267,1742298430493,-500.0,8.219e-05,2]
[356340268,1742298430513,-500.0,8.219e-05,2]
[356340269,1742298430534,-611.68912082,8.219e-05,2]
[356340270,1742298430555,-500.0,8.219e-05,2]
[356340271,1742298430575,-500.0,8.219e-05,2]
[356340272,1742298430595,-500.0,8.219e-05,2]
[356340273,1742298430616,-500.0,8.219e-05,2]
[356340274,1742298430636,-500.0,8.219e-05,2]
[356340275,1742298430656,-513.82919529,8.219e-05,2]
[356340276,1742298430678,-500.0,8.219e-05,2]
[356340277,1742298430698,-500.0,8.219e-05,2]
[356340278,1742298430719,-500.0,8.219e-05,2]
[356340279,1742298430740,-500.0,8.219e-05,2]
[356340280,1742298430762,-1439.87,8.219e-05,2]
[356340281,1742298430782,-500.0,8.219e-05,2]
[356340282,1742298430803,-5774.66,8.219e-05,2]
[356340283,1742298430823,-500.0,8.219e-05,2]
[356340284,1742298430848,-509.04217995,8.219e-05,2]
[356340285,1742298430870,-500.0,8.219e-05,2]
[356340286,1742298430890,-500.0,8.219e-05,2]
[356340287,1742298430911,-500.0,8.219e-05,2]
[356340288,1742298430933,-500.0,8.219e-05,2]
[356340289,1742298430953,-500.0,8.219e-05,2]
[356340290,1742298430973,-500.0,8.219e-05,2]
[356340291,1742298430995,-500.0,8.219e-05,2]
[356340292,1742298431016,-840.33,8.219e-05,2]
[356340293,1742298431037,-500.00763774,8.219e-05,2]
[356340294,1742298431058,-500.0,8.219e-05,2]
[356340295,1742298431078,-500.0,8.219e-05,2]
[356340296,1742298431099,-500.0,8.219e-05,2]
[356340297,1742298431120,-500.0,8.219e-05,2]
[356340298,1742298431142,-526.77402642,8.219e-05,2]
[356340299,1742298431163,-500.0,8.219e-05,2]
[356340300,1742298431185,-500.0,8.219e-05,2]
[356340301,1742298431206,-500.0,8.219e-05,2]
[356340302,1742298431230,-500.0,8.219e-05,2]
[356340303,1742298431251,-406.96139114,8.219e-05,2]
[356340304,1742298431272,-500.0,8.219e-05,2]
[356340305,1742298431293,-500.0,8.219e-05,2]
[356340306,1742298431312,-507.03690541,8.219e-05,2]
[356340307,1742298431333,-500.0,8.219e-05,2]
[356340308,1742298431354,-625.95714623,8.219e-05,2]
[356340309,1742298431374,-507.09828022,8.219e-05,2]
[356340310,1742298431395,-500.0,8.219e-05,2]
[356340311,1742298431416,-500.0,8.219e-05,2]
[356340312,1742298431436,-503.56992451,8.219e-05,2]
[356340313,1742298431457,-901.63,8.219e-05,2]
[356340314,1742298431481,-512.01418118,8.219e-05,2]
[356340315,1742298431502,-507.92221003,8.219e-05,2]
[356340316,1742298431523,-500.0,8.219e-05,2]
[356340317,1742298431544,-169.57936197,8.219e-05,2]
[356340318,1742298431566,-21419.34,8.219e-05,2]
[356340319,1742298431587,-500.0,8.219e-05,2]
[356340320,1742298431607,-500.0,8.219e-05,2]
[356340321,1742298431627,-500.0,8.219e-05,2]
[356340322,1742298431649,-500.0,8.219e-05,2]
[356340323,1742298431667,-502.80220434,8.219e-05,2]
[356340324,1742298431684,-500.0,8.219e-05,2]
[356340325,1742298431704,-500.0,8.219e-05,2]
[356340326,1742298431722,-515.36046024,8.219e-05,2]
[356340327,1742298431742,-500.0,8.219e-05,2]
[356340328,1742298431761,-209.77681257,8.219e-05,2]
[356340329,1742298431778,-508.05891752,8.219e-05,2]
[356340330,1742298431804,-516.72513292,8.219e-05,2]
[356340331,1742298431827,-408.2297341,8.219e-05,2]
[356340332,1742298431848,-509.90970697,8.219e-05,2]
[356340333,1742298431868,-500.0,8.219e-05,2]
[356340334,1742298431887,-516.47289369,8.219e-05,2]
[356340335,1742298431910,-500.0,8.219e-05,2]
[356340336,1742298431931,-520.27,8.219e-05,2]
[356340337,1742298431951,-1039.04,8.219e-05,2]
[356340338,1742298431972,-500.0,8.219e-05,2]
[356340339,1742298431992,-423.37930647,8.219e-05,2]
[356340340,1742298432013,-500.0,8.219e-05,2]
[356340341,1742298432036,-500.0,8.219e-05,2]
[356340342,1742298432057,-500.0,8.219e-05,2]
[356340343,1742298432079,-500.0,8.219e-05,2]
[356340344,1742298432100,-500.0,8.219e-05,2]
[356340345,1742298432126,-500.0,8.219e-05,2]
[356340346,1742298432154,-500.0,8.219e-05,2]
[356340347,1742298432181,-500.0,8.219e-05,2]
[356340348,1742298432203,-500.0,8.219e-05,2]
[356340349,1742298432224,-319.49361751,8.219e-05,2]
[356340350,1742298448101,-180.50638249,8.219e-05,2]
[356340351,1742298448124,-176.45593184,8.219e-05,2]
[356340352,1742298545102,-500.59514842,8.2e-05,2]
[356340380,1742298632332,-202.04629519,8.2e-05,2]
[356340381,1742298632343,-56.47700204,8.219e-05,2]
[356340382,1742298632353,-500.0,8.219e-05,2]
[356340383,1742298632363,-500.0,8.219e-05,2]
[356340384,1742298632372,-1842.09,8.219e-05,2]
[356340385,1742298632382,-510.61887564,8.219e-05,2]
[356340386,1742298632392,-501.48436388,8.219e-05,2]
[356340387,1742298632401,-500.0,8.219e-05,2]
[356340388,1742298632411,-509.46725102,8.219e-05,2]
[356340389,1742298632421,-500.96075137,8.219e-05,2]
[356340390,1742298632431,-500.0,8.219e-05,2]
[356340391,1742298632440,-505.39996665,8.219e-05,2]
[356340392,1742298632450,-481.56629332,8.219e-05,2]
[356340393,1742298632460,-500.0,8.219e-05,2]
[356340394,1742298632470,-500.0,8.219e-05,2]
[356340395,1742298632480,-500.0,8.219e-05,2]
[356340396,1742298632489,-500.0,8.219e-05,2]
[356340397,1742298632504,-500.0,8.219e-05,2]
[356340398,1742298632514,-500.0,8.219e-05,2]
[356340399,1742298632524,-500.0,8.219e-05,2]
[356340400,1742298632534,-500.0,8.219e-05,2]
[356340401,1742298632543,-497.16,8.219e-05,2]
[356340402,1742298632553,-588.74,8.219e-05,2]
[356340403,1742298632563,-500.0,8.219e-05,2]
[356340404,1742298632574,-500.0,8.219e-05,2]
[356340405,1742298632584,-500.0,8.219e-05,2]
[356340406,1742298632594,-500.0,8.219e-05,2]
[356340407,1742298632607,-500.0,8.219e-05,2]
[356340408,1742298632616,-473.47390429,8.219e-05,2]
[356340409,1742298632625,-500.0,8.219e-05,2]
[356340410,1742298632635,-500.0,8.219e-05,2]
[356340411,1742298632644,-500.0,8.219e-05,2]
[356340412,1742298632654,-1379.88,8.219e-05,2]
[356340413,1742298632664,-500.0,8.219e-05,2]
[356340414,1742298632673,-500.0,8.219e-05,2]
[356340415,1742298632683,-4491.34,8.219e-05,2]
[356340416,1742298632693,-500.0,8.219e-05,2]
[356340417,1742298632702,-500.0,8.219e-05,2]
[356340418,1742298632714,-581.56,8.219e-05,2]
[356340419,1742298632723,-500.0,8.219e-05,2]
[356340420,1742298632733,-279.98390322,8.219e-05,2]
[356340421,1742298632755,-220.01609678,8.219e-05,2]
[356340422,1742298632765,-864.06,8.219e-05,2]
[356340423,1742298632775,-500.0,8.219e-05,2]
[356340424,1742298632785,-500.0,8.219e-05,2]
[356340425,1742298632795,-996.69,8.219e-05,2]
[356340426,1742298632804,-500.0,8.219e-05,2]
[356340427,1742298632814,-774.056639,8.219e-05,2]
[356340428,1742298632824,-492.0417784,8.492e-05,2]
[356340429,1742298632834,-541.51325086,8.493e-05,2]
[356340430,1742298632843,-500.0,8.493e-05,2]
[356340431,1742298632853,-500.0,8.493e-05,2]
[356340432,1742298632863,-413.81127314,8.493e-05,2]
[356340433,1742298632873,-500.0,8.493e-05,2]
[356340434,1742298632884,-500.0,8.493e-05,2]
[356340435,1742298632897,-500.0,8.493e-05,2]
[356340436,1742298632908,-500.0,8.493e-05,2]
[356340437,1742298632918,-500.0,8.493e-05,2]
[356340438,1742298633120,-841.39,8.493e-05,2]
[356340439,1742298633131,-4354.52,8.493e-05,2]
[356340440,1742298633142,-500.0,8.493e-05,2]
[356340441,1742298633152,-500.0,8.493e-05,2]
[356340442,1742298633163,-577.51743561,8.493e-05,2]
[356340443,1742298633174,-541.97,8.493e-05,2]
[356340444,1742298633184,-500.0,8.493e-05,2]
[356340445,1742298633194,-500.0,8.493e-05,2]
[356340446,1742298633205,-511.7397753,8.493e-05,2]
[356340447,1742298633215,-500.0,8.493e-05,2]
[356340448,1742298633226,-500.0,8.493e-05,2]
[356340449,1742298633236,-500.0,8.493e-05,2]
[356340450,1742298633246,-514.46719318,8.493e-05,2]
[356340451,1742298633256,-500.0,8.493e-05,2]
[356340452,1742298633266,-500.0,8.493e-05,2]
[356340453,1742298633276,-500.0,8.493e-05,2]
[356340454,1742298633286,-500.0,8.493e-05,2]
[356340455,1742298633296,-500.0,8.493e-05,2]
[356340456,1742298633306,-500.0,8.493e-05,2]
[356340457,1742298633316,-573.99,8.493e-05,2]
[356340458,1742298633326,-500.0,8.493e-05,2]
[356340459,1742298633336,-500.0,8.493e-05,2]
[356340460,1742298633346,-500.0,8.493e-05,2]
[356340461,1742298633356,-500.0,8.493e-05,2]
[356340462,1742298633366,-500.0,8.493e-05,2]
[356340463,1742298633377,-500.0,8.493e-05,2]
[356340464,1742298633388,-500.0,8.493e-05,2]
[356340465,1742298633399,-500.0,8.493e-05,2]
[356340466,1742298633409,-420.62,8.493e-05,2]
[356340467,1742298633419,-500.0,8.493e-05,2]
[356340468,1742298633430,-500.0,8.493e-05,2]
[356340469,1742298633439,-840.33,8.493e-05,2]
[356340470,1742298633449,-500.0,8.493e-05,2]
[356340471,1742298633459,-500.0,8.493e-05,2]
[356340472,1742298633470,-500.0,8.493e-05,2]
[356340473,1742298633480,-500.0,8.493e-05,2]
[356340474,1742298633490,-500.0,8.493e-05,2]
[356340475,1742298633501,-500.0,8.493e-05,2]
[356340476,1742298633510,-315.65924198,8.493e-05,2]
[356340477,1742298633521,-500.0,8.493e-05,2]
[356340478,1742298633530,-21419.34,8.493e-05,2]
[356340479,1742298633549,-500.0,8.493e-05,2]
[356340480,1742298633561,-500.0,8.493e-05,2]
[356340481,1742298633571,-1039.04,8.493e-05,2]
[356340482,1742298633581,-500.0,8.493e-05,2]
[356340483,1742298633591,-500.0,8.493e-05,2]
[356340484,1742298633602,-500.0,8.493e-05,2]
[356340485,1742298633613,-500.0,8.493e-05,2]
[356340486,1742298633624,-1842.09,8.493e-05,2]
[356340487,1742298633635,-500.0,8.493e-05,2]
[356340488,1742298633646,-500.0,8.493e-05,2]
[356340489,1742298633656,-500.0,8.493e-05,2]
[356340490,1742298633667,-500.0,8.493e-05,2]
[356340491,1742298633677,-500.0,8.493e-05,2]
[356340492,1742298633688,-482.64568607,8.493e-05,2]
[356340493,1742298633699,-500.0,8.493e-05,2]
[356340494,1742298633709,-625.61145132,8.493e-05,2]
[356340495,1742298633720,-500.0,8.493e-05,2]
[356340496,1742298633731,-1379.88,8.493e-05,2]
[356340497,1742298633742,-382.83074099,8.493e-05,2]
[356340498,1742298633753,-500.0,8.493e-05,2]
[356340499,1742298633763,-4491.34,8.493e-05,2]
[356340500,1742298633774,-409.26437259,8.493e-05,2]
[356340501,1742298633786,-581.56,8.493e-05,2]
[356340502,1742298633797,-500.0,8.493e-05,2]
[356340503,1742298633808,-500.0,8.493e-05,2]
[356340504,1742298633819,-452.14496112,8.493e-05,2]
[356340505,1742298633830,-864.06,8.493e-05,2]
[356340506,1742298633840,-230.04035587,8.493e-05,2]
[356340507,1742298633851,-500.0,8.493e-05,2]
[356340508,1742298633861,-996.69,8.493e-05,2]
[356340509,1742298633872,-500.0,8.493e-05,2]
[356340510,1742298633883,-500.50288642,8.533e-05,2]
[356340511,1742298633898,-510.29582406,8.533e-05,2]
[356340512,1742298633908,-500.0,8.533e-05,2]
[356340513,1742298633918,-500.0,8.533e-05,2]
[356340514,1742298633930,-600.0,8.555e-05,2]
[356340515,1742298633941,-178434.8715038,8.56e-05,2]
[356340534,1742298638248,-1158.88657255,8.56e-05,2]
[356340544,1742298642282,-3990.24504774,8.56e-05,2]
[356340553,1742298643342,-455.0739918,8.56e-05,2]
[356340568,1742298646395,-37960.92288411,8.56e-05,2]
[356340569,1742298646405,-151.0,8.56e-05,2]
[356340570,1742298646414,-622.2,8.61e-05,2]
[356340571,1742298646424,-645.2214,8.665e-05,2]
[356340572,1742298646433,-500.0,8.767e-05,2]
[356340573,1742298646443,-500.0,8.767e-05,2]
[356340574,1742298646452,-185.21292217,8.767e-05,2]
[356340575,1742298646462,-500.0,8.767e-05,2]
[356340576,1742298646472,-841.39,8.767e-05,2]
[356340577,1742298646481,-500.0,8.767e-05,2]
[356340578,1742298646491,-4354.52,8.767e-05,2]
[356340579,1742298646500,-500.0,8.767e-05,2]
[356340580,1742298646510,-500.0,8.767e-05,2]
[356340581,1742298646519,-500.0,8.767e-05,2]
[356340582,1742298646529,-500.0,8.767e-05,2]
[356340583,1742298646539,-230.22465477,8.767e-05,2]
[356340584,1742298646550,-500.0,8.767e-05,2]
[356340585,1742298646560,-500.0,8.767e-05,2]
[356340586,1742298646570,-500.0,8.767e-05,2]
[356340587,1742298646580,-500.0,8.767e-05,2]
[356340588,1742298646590,-582.35406566,8.767e-05,2]
[356340589,1742298646600,-500.0,8.767e-05,2]
[356340590,1742298646610,-500.0,8.767e-05,2]
[356340591,1742298646619,-500.0,8.767e-05,2]
[356340592,1742298646629,-500.0,8.767e-05,2]
[356340593,1742298646639,-250.81936021,8.767e-05,2]
[356340594,1742298646777,-127.27278668,8.767e-05,2]